bitfinex/quotes_SOLUSD_20230113
["timestamp","ask_amount","ask_price","bid_price","bid_amount"]
[1673641661221,20.0,17.069,17.046,116.2121]
[1673641661544,154.27330293,17.069,17.046,116.2121]
[1673641661882,141.48325035,17.068,17.046,116.2121]
[1673641662069,20.0,17.067,17.046,116.2121]
[1673641662265,154.27330293,17.067,17.046,116.2121]
[1673641662476,90.32330293,17.066,17.046,116.2121]
[1673641662802,29.9691928,17.065,17.046,116.2121]
[1673641663017,137.61663626,17.065,17.046,116.2121]
[1673641663228,137.61663626,17.065,17.047,20.0]
[1673641664471,107.64744346,17.065,17.047,20.0]
[1673641665314,107.64744346,17.065,17.048,17.0]
[1673641665540,137.61663626,17.065,17.048,17.0]
[1673641667221,137.61663626,17.065,17.046,116.2121]
[1673641667222,20.0,17.064,17.046,116.2121]
[1673641667419,20.0,17.063,17.046,116.2121]
[1673641667628,93.9291928,17.063,17.046,116.2121]
[1673641667837,49.9691928,17.062,17.046,116.2121]
[1673641668171,93.65663626,17.061,17.046,116.2121]
[1673641668388,20.0,17.06,17.046,116.2121]
[1673641668789,43.97,17.059,17.046,116.2121]
[1673641669544,63.97,17.06,17.046,116.2121]
[1673641669852,63.97,17.06,17.047,17.0]
[1673641679626,63.97,17.06,17.046,116.2121]
[1673641680964,93.9391928,17.06,17.046,116.2121]
[1673641682671,63.97,17.06,17.046,116.2121]
[1673641682866,20.0,17.06,17.047,37.0]
[1673641683301,20.0,17.059,17.047,37.0]
[1673641683621,43.96,17.065,17.047,37.0]
[1673641683834,114.7672,17.069,17.047,37.0]
[1673641683835,43.95,17.066,17.05,46.3]
[1673641684025,43.95,17.068,17.05,46.3]
[1673641684237,43.95,17.068,17.051,17.0]
[1673641684460,93.9191928,17.068,17.051,17.0]
[1673641685620,20.0,17.067,17.051,17.0]
[1673641685931,73.9191928,17.068,17.051,17.0]
[1673641686874,20.0,17.067,17.051,17.0]
[1673641687197,29.9691928,17.067,17.051,17.0]
[1673641687385,43.95,17.066,17.051,17.0]
[1673641687598,73.9191928,17.067,17.051,17.0]
[1673641688234,43.95,17.067,17.051,17.0]
[1673641688552,43.95,17.068,17.05,46.3]
[1673641688771,43.95,17.066,17.05,46.3]
[1673641688967,49.9691928,17.067,17.05,46.3]
[1673641689283,43.95,17.066,17.05,46.3]
[1673641690017,43.95,17.066,17.051,17.0]
[1673641691385,20.0,17.079,17.051,17.0]
[1673641691386,43.94,17.07,17.051,17.0]
[1673641691597,20.0,17.07,17.052,111.9356]
[1673641691808,20.0,17.07,17.053,20.0]
[1673641692038,20.0,17.07,17.054,17.0]
[1673641692239,20.0,17.073,17.054,17.0]
[1673641692433,20.0,17.073,17.055,110.6215]
[1673641692765,20.0,17.073,17.056,20.0]
[1673641693076,20.0,17.079,17.056,20.0]
[1673641693077,43.92,17.078,17.06,46.77]
[1673641693490,156.6311,17.079,17.061,17.0]
[1673641693701,112.7111,17.079,17.062,20.0]
[1673641694216,112.7111,17.079,17.063,17.0]
[1673641694967,112.7111,17.079,17.064,110.6215]
[1673641695283,112.7111,17.079,17.065,17.0]
[1673641695903,20.0,17.078,17.065,17.0]
[1673641699190,20.0,17.078,17.065,37.0]
[1673641699585,20.0,17.078,17.065,17.0]
[1673641700656,20.0,17.078,17.066,20.0]
[1673641700846,43.91,17.082,17.066,20.0]
[1673641700847,43.91,17.082,17.067,37.0]
[1673641701056,43.9,17.087,17.07,46.77]
[1673641701382,161.2802,17.088,17.071,2.96883956]
[1673641701603,43.9,17.086,17.071,22.96883956]
[1673641701800,43.9,17.087,17.071,22.96883956]
[1673641702220,43.9,17.087,17.071,20.0]
[1673641702431,43.9,17.087,17.07,66.77]
[1673641702856,117.3802,17.088,17.07,90.60612562]
[1673641703203,117.3802,17.088,17.071,20.0]
[1673641703488,117.3802,17.088,17.072,2.69721745]
[1673641703677,20.0,17.087,17.072,26.53334307]
[1673641703890,20.0,17.087,17.074,3.32230343]
[1673641704332,20.0,17.087,17.074,27.15842905]
[1673641704524,20.0,17.087,17.075,20.0]
[1673641704740,20.0,17.094,17.076,3.32230343]
[1673641705047,137.8098,17.094,17.076,20.32230343]
[1673641705256,137.8098,17.094,17.076,17.0]
[1673641705257,43.88,17.093,17.076,17.0]
[1673641705474,40.0,17.092,17.076,17.0]
[1673641706011,20.0,17.091,17.076,17.0]
[1673641706219,20.0,17.09,17.076,17.0]
[1673641706644,43.9,17.089,17.076,17.0]
[1673641707152,20.0,17.088,17.076,17.0]
[1673641707677,20.0,17.089,17.076,17.0]
[1673641710510,20.0,17.088,17.073,115.0982]
[1673641710750,63.9,17.088,17.073,115.0982]
[1673641711059,20.0,17.087,17.073,115.0982]
[1673641711784,20.0,17.087,17.07,51.16]
[1673641711785,20.0,17.086,17.07,31.16]
[1673641712108,20.0,17.086,17.062,110.3674]
[1673641712109,20.0,17.085,17.062,110.3674]
[1673641712419,31.12,17.08,17.062,110.3674]
[1673641712732,40.0,17.079,17.062,110.3674]
[1673641712941,63.92,17.079,17.062,110.3674]
[1673641713130,109.589,17.084,17.07,31.01]
[1673641713347,109.589,17.084,17.071,20.0]
[1673641713555,31.16,17.09,17.071,43.83612562]
[1673641713780,118.1286,17.089,17.072,23.83612562]
[1673641713995,118.1286,17.089,17.073,129.9262]
[1673641714317,118.1286,17.089,17.074,23.83612562]
[1673641714499,118.1286,17.089,17.075,17.0]
[1673641715152,118.1286,17.089,17.075,40.59058184]
[1673641715361,20.0,17.088,17.075,40.59058184]
[1673641716393,20.0,17.088,17.076,20.0]
[1673641716709,20.0,17.088,17.077,23.59058184]
[1673641716922,20.0,17.088,17.078,17.0]
[1673641717661,20.0,17.088,17.078,40.59058184]
[1673641718410,43.88,17.095,17.078,40.59058184]
[1673641718622,20.0,17.098,17.08,31.16]
[1673641718623,110.0687,17.097,17.08,31.16]
[1673641719026,110.0687,17.097,17.081,40.59058184]
[1673641719563,110.0687,17.097,17.082,132.06948184]
[1673641721457,20.0,17.096,17.082,132.06948184]
[1673641721669,20.0,17.096,17.083,17.0]
[1673641721885,110.0687,17.097,17.083,17.0]
[1673641727029,110.0687,17.097,17.084,20.0]
[1673641727239,110.0687,17.097,17.082,132.06948184]
[1673641727654,110.0687,17.097,17.083,17.0]
[1673641730609,43.88,17.096,17.083,17.0]
[1673641732491,43.88,17.096,17.082,108.4789]
[1673641732685,43.88,17.096,17.074,26.581]
[1673641732901,43.88,17.096,17.075,20.0]
[1673641733121,20.0,17.095,17.075,20.0]
[1673641733661,43.88,17.094,17.075,20.0]
[1673641734593,43.88,17.094,17.076,43.59058184]
[1673641734808,43.88,17.094,17.077,20.0]
[1673641735009,43.88,17.095,17.077,20.0]
[1673641735545,43.88,17.096,17.078,23.59058184]
[1673641735742,110.0687,17.097,17.079,17.0]
[1673641735953,43.88,17.096,17.079,17.0]
[1673641736163,43.88,17.096,17.08,23.59058184]
[1673641736885,43.88,17.096,17.081,17.0]
[1673641737096,20.0,17.095,17.081,17.0]
[1673641737441,43.88,17.096,17.081,17.0]
[1673641740172,43.88,17.096,17.082,109.7702]
[1673641740368,43.88,17.096,17.083,17.0]
[1673641743082,63.88,17.096,17.083,17.0]
[1673641743308,43.88,17.096,17.083,17.0]
[1673641746798,43.88,17.096,17.082,109.7702]
[1673641747004,43.88,17.096,17.073,223.5915]
[1673641747005,20.0,17.095,17.074,6.833]
[1673641747214,20.0,17.094,17.073,227.0025]
[1673641747541,20.0,17.093,17.074,43.59058184]
[1673641747724,20.0,17.092,17.074,43.59058184]
[1673641747942,63.89,17.092,17.074,43.59058184]
[1673641748374,63.89,17.092,17.074,23.59058184]
[1673641748579,63.89,17.092,17.075,20.0]
[1673641749117,20.0,17.092,17.075,20.0]
[1673641749306,20.0,17.094,17.075,20.0]
[1673641749519,20.0,17.094,17.074,43.59058184]
[1673641749853,63.89,17.093,17.075,17.0]
[1673641750161,20.0,17.092,17.075,17.0]
[1673641751206,63.89,17.091,17.073,223.5915]
[1673641751426,20.0,17.09,17.073,223.5915]
[1673641751635,40.0,17.09,17.073,223.5915]
[1673641752062,20.0,17.09,17.073,223.5915]
[1673641752586,20.0,17.091,17.074,17.0]
[1673641753104,20.0,17.091,17.073,223.5915]
[1673641753944,20.0,17.091,17.074,20.0]
[1673641754680,20.0,17.093,17.075,17.0]
[1673641754871,43.89,17.093,17.075,17.0]
[1673641755081,20.0,17.092,17.075,17.0]
[1673641755291,43.89,17.092,17.075,17.0]
[1673641755501,69.9691928,17.094,17.075,17.0]
[1673641755502,43.89,17.093,17.075,17.0]
[1673641755716,20.0,17.092,17.073,247.18208184]
[1673641755943,20.0,17.092,17.074,37.0]
[1673641756548,20.0,17.092,17.075,20.0]
[1673641757412,20.0,17.092,17.076,17.0]
[1673641758670,20.0,17.092,17.074,20.0]
[1673641759194,20.0,17.094,17.073,223.5915]
[1673641759394,20.0,17.093,17.073,223.5915]
[1673641759592,63.89,17.093,17.073,223.5915]
[1673641759820,20.0,17.092,17.073,223.5915]
[1673641760349,20.0,17.092,17.074,17.0]
[1673641760672,20.0,17.093,17.074,17.0]
[1673641760857,20.0,17.093,17.073,223.5915]
[1673641761077,43.89,17.092,17.073,223.5915]
[1673641761405,40.0,17.091,17.073,223.5915]
[1673641761814,20.0,17.091,17.073,223.5915]
[1673641763179,29.9691928,17.093,17.073,223.5915]
[1673641763180,20.0,17.092,17.073,223.5915]
[1673641763509,40.0,17.092,17.073,223.5915]
[1673641764561,43.89,17.091,17.074,17.0]
[1673641764769,20.0,17.09,17.074,17.0]
[1673641765272,20.0,17.091,17.074,17.0]
[1673641766988,20.0,17.092,17.074,37.0]
[1673641767283,20.0,17.092,17.074,17.0]
[1673641767815,20.0,17.092,17.074,37.0]
[1673641768216,20.0,17.093,17.074,17.0]
[1673641768532,63.89,17.093,17.074,17.0]
[1673641768747,93.8591928,17.093,17.074,17.0]
[1673641769481,63.89,17.093,17.074,37.0]
[1673641769792,20.0,17.093,17.074,17.0]
[1673641770009,93.8591928,17.092,17.074,17.0]
[1673641770215,20.0,17.091,17.074,17.0]
[1673641770419,20.0,17.091,17.073,223.5915]
[1673641770636,20.0,17.09,17.073,223.5915]
[1673641770873,177.1268,17.09,17.073,223.5915]
[1673641771051,20.0,17.089,17.073,112.9262]
[1673641771577,20.0,17.089,17.071,2.763]
[1673641771794,20.0,17.087,17.06,30.86]
[1673641771999,20.0,17.087,17.061,112.4577]
[1673641772315,187.17284355,17.086,17.061,112.4577]
[1673641772848,20.0,17.084,17.061,112.4577]
[1673641773059,20.0,17.083,17.061,112.4577]
[1673641773273,93.8791928,17.083,17.061,112.4577]
[1673641773488,29.9691928,17.082,17.061,112.4577]
[1673641773693,20.0,17.081,17.062,20.0]
[1673641773922,63.92,17.081,17.065,17.0]
[1673641776745,63.92,17.081,17.062,20.0]
[1673641776965,63.92,17.081,17.061,112.4577]
[1673641777915,29.9691928,17.08,17.061,112.4577]
[1673641778125,20.0,17.079,17.061,112.4577]
[1673641778435,63.92,17.079,17.061,112.4577]
[1673641778655,63.92,17.079,17.065,20.0]
[1673641778656,20.0,17.079,17.065,20.0]
[1673641779056,20.0,17.08,17.062,20.0]
[1673641780327,20.0,17.08,17.065,20.0]
[1673641782842,20.0,17.08,17.066,17.0]
[1673641783784,20.0,17.08,17.062,23.59058184]
[1673641784119,40.0,17.08,17.067,17.0]
[1673641784331,20.0,17.08,17.067,17.0]
[1673641784515,43.92,17.079,17.067,17.0]
[1673641784725,20.0,17.078,17.067,17.0]
[1673641785360,20.0,17.079,17.067,17.0]
[1673641786427,20.0,17.08,17.068,17.0]
[1673641787375,20.0,17.081,17.068,17.0]
[1673641788111,63.92,17.081,17.068,17.0]
[1673641795016,20.0,17.081,17.068,17.0]
[1673641797673,63.92,17.081,17.068,17.0]
[1673641797877,20.0,17.081,17.068,17.0]
[1673641798822,63.92,17.081,17.068,17.0]
[1673641799752,20.0,17.081,17.068,17.0]
[1673641800168,43.91,17.084,17.07,23.4]
[1673641800382,23.26,17.09,17.07,23.4]
[1673641800383,20.0,17.087,17.071,17.0]
[1673641800614,43.91,17.083,17.071,17.0]
[1673641800825,20.0,17.082,17.071,17.0]
[1673641801030,63.91,17.082,17.071,17.0]
[1673641801256,20.0,17.082,17.071,17.0]
[1673641801431,43.92,17.081,17.071,17.0]
[1673641801646,20.0,17.08,17.071,17.0]
[1673641802287,20.0,17.082,17.071,17.0]
[1673641803024,43.91,17.083,17.071,17.0]
[1673641803449,43.91,17.083,17.072,20.0]
[1673641803855,43.91,17.083,17.073,17.0]
[1673641804304,43.91,17.083,17.073,133.8532]
[1673641804499,43.91,17.083,17.074,20.0]
[1673641804919,43.91,17.083,17.075,17.0]
[1673641805651,43.91,17.083,17.075,20.0]
[1673641805876,43.91,17.083,17.076,17.0]
[1673641806193,0.0001,17.083,17.076,17.0]
[1673641808398,0.0001,17.083,17.077,20.0]
[1673641808795,0.0001,17.083,17.078,43.59058184]
[1673641809009,0.0001,17.083,17.078,60.59058184]
[1673641809227,0.0001,17.083,17.079,23.59058184]
[1673641809444,0.0001,17.083,17.08,17.0]
[1673641809852,0.0001,17.083,17.078,20.0]
[1673641810060,0.0001,17.083,17.075,20.0]
[1673641810789,0.0001,17.083,17.076,17.0]
[1673641811004,0.0001,17.083,17.077,20.0]
[1673641811443,0.0001,17.083,17.078,17.0]
[1673641812392,0.0001,17.083,17.079,20.0]
[1673641812790,0.0001,17.083,17.08,17.0]
[1673641813428,0.0001,17.083,17.075,23.59058184]
[1673641813640,0.0001,17.083,17.073,116.8532]
[1673641814052,0.0001,17.083,17.074,20.0]
[1673641815966,0.0001,17.083,17.075,17.0]
[1673641816500,0.0001,17.083,17.075,40.59058184]
[1673641816811,0.0001,17.083,17.076,20.0]
[1673641817339,0.0001,17.083,17.078,20.0]
[1673641817746,0.0001,17.083,17.079,40.59058184]
[1673641818171,0.0001,17.083,17.08,20.0]
[1673641818386,0.0001,17.083,17.081,17.0]
[1673641818588,0.0001,17.083,17.082,115.9032]
[1673641819008,0.0001,17.083,17.082,132.9032]
[1673641826480,0.0001,17.083,17.077,20.0]
[1673641826793,0.0001,17.083,17.074,148.8917]
[1673641828385,0.0001,17.083,17.075,17.0]
[1673641828704,0.0001,17.083,17.076,20.0]
[1673641828908,0.0001,17.083,17.077,17.0]
[1673641829103,0.0001,17.083,17.078,20.0]
[1673641829306,0.0001,17.083,17.079,17.0]
[1673641830589,0.0001,17.083,17.078,17.0]
[1673641830996,0.0001,17.083,17.079,23.59058184]
[1673641831207,0.0001,17.083,17.08,37.0]
[1673641831945,0.0001,17.083,17.08,59.93902722]
[1673641832168,0.0001,17.083,17.081,20.0]
[1673641832482,0.0001,17.083,17.082,17.0]
[1673641832694,0.0001,17.083,17.082,136.2021]
[1673641837526,20.0,17.097,17.083,20.0]
[1673641837936,20.0,17.097,17.083,42.93902722]
[1673641838259,20.0,17.097,17.083,20.0]
[1673641838494,20.0,17.102,17.083,20.0]
[1673641838789,20.0,17.097,17.083,42.93902722]
[1673641839395,20.0,17.097,17.084,17.0]
[1673641839607,20.0,17.102,17.085,20.0]
[1673641839608,20.0,17.098,17.085,20.0]
[1673641839831,20.0,17.098,17.086,17.0]
[1673641840044,20.0,17.097,17.082,119.2021]
[1673641841418,20.0,17.097,17.083,17.0]
[1673641841630,20.0,17.097,17.083,37.0]
[1673641842145,20.0,17.098,17.084,20.0]
[1673641842377,20.0,17.098,17.085,17.0]
[1673641843836,20.0,17.098,17.084,20.0]
[1673641844053,20.0,17.097,17.083,20.0]
[1673641844462,20.0,17.098,17.083,20.0]
[1673641845624,177.6798,17.118,17.084,39.93902722]
[1673641845829,138.0531,17.107,17.085,40.0]
[1673641846038,138.0531,17.107,17.087,20.0]
[1673641846252,138.0531,17.107,17.088,20.0]
[1673641847105,138.0531,17.107,17.089,17.0]
[1673641847839,138.0531,17.107,17.088,20.0]
[1673641848036,138.0531,17.107,17.087,40.0]
[1673641848576,138.0531,17.107,17.087,20.0]
[1673641848788,138.0531,17.107,17.088,20.0]
[1673641849192,138.0531,17.107,17.089,17.0]
[1673641849754,138.0531,17.107,17.088,17.0]
[1673641850263,118.0531,17.107,17.091,20.0]
[1673641850575,118.0531,17.107,17.092,17.0]
[1673641854055,118.0531,17.107,17.091,118.8294]
[1673641854583,20.0,17.106,17.091,118.8294]
[1673641855190,20.0,17.106,17.087,20.0]
[1673641855520,49.9691928,17.106,17.088,17.0]
[1673641856572,49.9691928,17.106,17.087,20.0]
[1673641857196,29.9691928,17.106,17.087,20.0]
[1673641857619,118.0531,17.107,17.088,20.0]
[1673641857945,118.0531,17.107,17.089,17.0]
[1673641859840,118.0531,17.107,17.088,17.0]
[1673641861420,20.0,17.106,17.088,17.0]
[1673641861954,118.0531,17.107,17.088,17.0]
[1673641862258,118.0531,17.107,17.088,37.0]
[1673641862470,118.0531,17.107,17.09,30.83]
[1673641862678,118.0531,17.107,17.091,130.8776]
[1673641864569,21.7798,17.118,17.092,20.0]
[1673641864800,130.3514,17.113,17.093,17.0]
[1673641865702,20.0,17.112,17.093,17.0]
[1673641866125,20.0,17.112,17.091,113.8776]
[1673641866334,20.0,17.111,17.092,17.0]
[1673641866666,20.0,17.11,17.092,17.0]
[1673641866986,20.0,17.109,17.092,17.0]
[1673641868225,20.0,17.11,17.092,17.0]
[1673641868447,20.0,17.111,17.092,17.0]
[1673641868656,20.0,17.112,17.092,37.0]
[1673641869510,20.0,17.112,17.092,17.0]
[1673641869710,40.0,17.112,17.092,17.0]
[1673641870353,20.0,17.112,17.092,17.0]
[1673641871187,140.3205928,17.113,17.1,31.01]
[1673641871188,110.3514,17.113,17.1,31.01]
[1673641871398,110.3514,17.113,17.101,17.0]
[1673641873063,31.13,17.11,17.087,20.0]
[1673641873279,31.13,17.11,17.08,30.83]
[1673641873494,168.95732956,17.112,17.073,119.7969]
[1673641873495,30.91,17.1,17.073,119.7969]
[1673641873699,40.0,17.099,17.073,119.7969]
[1673641873905,17.0,17.098,17.07,31.01]
[1673641874122,20.0,17.096,17.07,31.01]
[1673641874331,31.13,17.09,17.064,114.999]
[1673641874542,20.0,17.089,17.065,20.0]
[1673641875080,49.9691928,17.089,17.07,31.13]
[1673641876847,20.0,17.089,17.07,31.13]
[1673641877082,49.9691928,17.093,17.07,31.13]
[1673641877283,20.0,17.093,17.071,17.0]
[1673641877493,20.0,17.094,17.072,20.0]
[1673641877816,29.9691928,17.092,17.073,17.0]
[1673641878009,20.0,17.091,17.073,17.0]
[1673641878635,49.9691928,17.091,17.07,31.13]
[1673641878856,164.3493928,17.09,17.07,31.13]
[1673641879276,49.9691928,17.089,17.07,31.13]
[1673641879914,20.0,17.089,17.071,17.0]
[1673641880126,49.9691928,17.089,17.071,17.0]
[1673641880342,49.9691928,17.089,17.07,31.13]
[1673641881392,20.0,17.089,17.07,31.13]
[1673641882331,20.0,17.089,17.071,17.0]
[1673641882547,20.0,17.089,17.072,20.0]
[1673641882733,20.0,17.089,17.073,17.0]
[1673641882939,20.0,17.089,17.073,128.1641]
[1673641886848,40.0,17.089,17.073,128.1641]
[1673641887062,20.0,17.089,17.073,128.1641]
[1673641890107,20.0,17.089,17.074,20.0]
[1673641890317,20.0,17.089,17.075,17.0]
[1673641891064,20.0,17.089,17.073,111.1641]
[1673641891901,17.0,17.088,17.07,31.13]
[1673641892093,20.0,17.087,17.07,31.13]
[1673641892303,17.0,17.086,17.07,31.13]
[1673641892937,20.0,17.087,17.07,31.13]
[1673641893155,20.0,17.089,17.07,31.13]
[1673641893478,20.0,17.089,17.072,20.0]
[1673641893701,117.3802,17.09,17.073,17.0]
[1673641893914,117.3802,17.09,17.074,20.0]
[1673641894232,117.3802,17.09,17.076,20.0]
[1673641894427,30.91,17.1,17.077,17.0]
[1673641894639,110.4586,17.099,17.077,17.0]
[1673641894861,20.0,17.098,17.078,20.0]
[1673641895268,20.0,17.098,17.079,17.0]
[1673641895478,20.0,17.098,17.08,20.0]
[1673641895694,20.0,17.098,17.081,17.0]
[1673641896211,20.0,17.098,17.082,119.2282]
[1673641896430,20.0,17.098,17.083,17.0]
[1673641897473,20.0,17.097,17.083,17.0]
[1673641898423,49.9691928,17.098,17.083,17.0]
[1673641898836,20.0,17.098,17.083,17.0]
[1673641899485,40.0,17.098,17.083,17.0]
[1673641900321,20.0,17.096,17.078,20.0]
[1673641901571,20.0,17.096,17.079,17.0]
[1673641904434,17.0,17.097,17.08,31.13]
[1673641904629,20.0,17.098,17.08,31.13]
[1673641905252,20.0,17.098,17.081,20.0]
[1673641905479,20.0,17.098,17.082,17.0]
[1673641905673,20.0,17.098,17.082,135.3282]
[1673641906528,20.0,17.098,17.083,20.0]
[1673641906720,20.0,17.098,17.082,118.3282]
[1673641906932,20.0,17.098,17.083,17.0]
[1673641907891,20.0,17.098,17.083,37.0]
[1673641908216,20.0,17.098,17.083,17.0]
[1673641909377,20.0,17.098,17.083,37.0]
[1673641909686,20.0,17.098,17.083,17.0]
[1673641912312,20.0,17.098,17.083,37.0]
[1673641912837,111.263,17.109,17.084,42.93902722]
[1673641913026,133.4804,17.108,17.085,20.0]
[1673641913238,133.4804,17.108,17.086,37.0]
[1673641913464,133.4804,17.108,17.087,20.0]
[1673641913665,133.4804,17.108,17.088,37.0]
[1673641913875,133.4804,17.108,17.09,30.98]
[1673641914206,133.4804,17.108,17.091,113.8779]
[1673641914416,133.4804,17.108,17.092,17.0]
[1673641917457,133.4804,17.108,17.092,37.0]
[1673641917994,133.4804,17.108,17.092,17.0]
[1673641918415,133.4804,17.108,17.093,20.0]
[1673641918816,133.4804,17.108,17.094,17.0]
[1673641919770,20.0,17.108,17.094,17.0]
[1673641919982,138.8869,17.115,17.094,17.0]
[1673641920835,29.9691928,17.114,17.091,226.7617]
[1673641921145,20.0,17.112,17.091,226.7617]
[1673641921351,20.0,17.111,17.091,226.7617]
[1673641921547,20.0,17.111,17.092,20.0]
[1673641921757,20.0,17.111,17.091,226.7617]
[1673641921969,20.0,17.111,17.092,20.0]
[1673641922178,20.0,17.113,17.092,20.0]
[1673641922179,20.0,17.112,17.092,20.0]
[1673641922399,40.0,17.113,17.092,20.0]
[1673641922611,20.0,17.113,17.092,20.0]
[1673641923024,40.0,17.113,17.092,20.0]
[1673641923235,20.0,17.113,17.092,20.0]
[1673641923660,20.0,17.113,17.092,42.93902722]
[1673641927449,20.0,17.113,17.092,22.93902722]
[1673641927637,40.0,17.113,17.093,17.0]
[1673641927848,69.9691928,17.113,17.093,17.0]
[1673641928269,49.9691928,17.113,17.093,17.0]
[1673641930490,49.9691928,17.113,17.094,20.0]
[1673641930817,20.0,17.113,17.092,20.0]
[1673641931023,20.0,17.113,17.091,226.7617]
[1673641931348,20.0,17.113,17.092,37.0]
[1673641932606,20.0,17.113,17.092,17.0]
[1673641933342,74.84772626,17.114,17.092,17.0]
[1673641933536,118.8869,17.115,17.1,30.98]
[1673641933751,118.8869,17.115,17.1,145.3957]
[1673641933969,118.8869,17.115,17.101,17.0]
[1673641934708,118.8869,17.115,17.102,20.0]
[1673641934916,118.8869,17.115,17.103,17.0]
[1673641935315,24.8878443,17.134,17.104,22.93902722]
[1673641935528,115.9643,17.133,17.11,30.98]
[1673641935736,115.9643,17.133,17.111,1.5]
[1673641935972,20.0,17.132,17.111,41.43902722]
[1673641936285,115.9643,17.133,17.113,1.5]
[1673641936487,115.9643,17.133,17.113,38.5]
[1673641936808,115.9643,17.133,17.12,31.13]
[1673641937119,24.8878443,17.134,17.121,17.0]
[1673641937435,24.8878443,17.134,17.122,1.5]
[1673641938473,23.3878443,17.134,17.122,1.5]
[1673641939545,23.3878443,17.134,17.122,23.79229074]
[1673641939957,23.3878443,17.134,17.124,3.0]
[1673641943751,23.3878443,17.134,17.124,45.29229074]
[1673641943961,23.3878443,17.134,17.125,37.0]
[1673641944277,23.3878443,17.134,17.126,23.0]
[1673641944467,23.3878443,17.134,17.125,37.0]
[1673641944468,23.3878443,17.134,17.128,3.0]
[1673641944674,23.3878443,17.134,17.126,3.0]
[1673641944885,23.3878443,17.134,17.121,3.0]
[1673641946573,57.0,17.133,17.112,3.0]
[1673641946791,172.9882,17.133,17.111,392.3]
[1673641946999,29.9691928,17.132,17.111,392.3]
[1673641947207,35.5,17.131,17.111,392.3]
[1673641947529,35.5,17.131,17.112,20.0]
[1673641948477,35.5,17.131,17.111,392.3]
[1673641948668,35.5,17.131,17.112,37.0]
[1673641949103,35.5,17.131,17.111,392.3]
[1673641949530,20.0,17.13,17.111,392.3]
[1673641949743,20.0,17.128,17.111,392.3]
[1673641949945,20.0,17.127,17.112,20.0]
[1673641950356,20.0,17.129,17.112,20.0]
[1673641950580,20.0,17.132,17.112,20.0]
[1673641951722,20.0,17.132,17.114,20.0]
[1673641952775,20.0,17.132,17.115,17.0]